bitfinex-derivatives/quotes_ETHF0:USTF0_20250214
["timestamp","ask_amount","ask_price","bid_price","bid_amount"]
[1739548589658,3.9360332,2745.7,2745.6,0.00546279]
[1739548589857,3.2078032,2745.7,2745.6,0.00546279]
[1739548590058,0.5394,2746.3,2745.6,3.21326279]
[1739548590254,3.2078032,2745.9,2745.6,3.21326279]
[1739548591265,3.9360232,2745.8,2745.6,3.21326279]
[1739548591460,3.2078032,2745.7,2745.6,3.21326279]
[1739548592566,3.9360332,2745.7,2745.6,0.00546279]
[1739548594561,1.82071,2745.5,2744.8,3.2078]
[1739548594765,3.2078032,2744.9,2744.8,3.2078]
[1739548594964,3.2078032,2745.2,2744.8,3.2078]
[1739548595772,0.7283,2745.5,2745.1,3.2078]
[1739548595969,3.9361032,2745.5,2745.1,3.2078]
[1739548596165,3.2078032,2745.5,2745.1,3.2078]
[1739548596466,3.2078032,2745.4,2745.1,3.2078]
[1739548597169,0.72829,2745.5,2745.1,3.93618]
[1739548597373,0.72831,2745.4,2745.1,3.2078]
[1739548597864,3.2078032,2745.2,2745.1,3.2078]
[1739548598071,3.2078032,2745.2,2744.7,0.00546279]
[1739548598264,3.2078032,2745.1,2744.7,0.00546279]
[1739548598464,3.2078032,2745.1,2744.9,3.93623]
[1739548598871,3.9362132,2745.1,2744.9,3.2078]
[1739548599168,0.72842,2745.0,2744.9,3.2078]
[1739548599372,0.72842,2745.0,2744.7,0.73394279]
[1739548599373,0.72847,2744.8,2744.7,0.00546279]
[1739548599771,3.9362732,2744.8,2744.7,0.00546279]
[1739548601078,6.4156032,2744.8,2743.9,3.24011255]
[1739548601280,3.2078032,2744.0,2743.9,0.03231255]
[1739548601480,3.2078032,2744.0,2743.9,3.24011255]
[1739548601681,3.9364832,2744.0,2743.9,3.24011255]
[1739548601976,0.72871,2743.9,2743.6,5.3418]
[1739548602169,1.82162,2744.2,2743.6,3.2078]
[1739548602375,3.2078032,2743.7,2743.5,0.00546279]
[1739548602676,0.00546279,2744.1,2743.5,0.00546279]
[1739548602879,3.2078032,2743.6,2743.5,3.21326279]
[1739548603181,3.2078032,2743.9,2743.8,0.72873]
[1739548603384,0.00546279,2744.1,2744.0,0.72868]
[1739548603875,0.00546279,2744.1,2744.0,6.72868]
[1739548604675,0.00546279,2744.1,2743.9,0.5619]
[1739548604875,0.00546279,2744.1,2744.0,0.72868]
[1739548605075,0.00546279,2744.1,2743.9,0.5619]
[1739548605275,3.21326599,2744.1,2743.9,0.5619]
[1739548605471,3.2078032,2744.0,2743.8,3.2078]
[1739548605783,3.9365132,2743.9,2743.8,3.2078]
[1739548606178,0.72879,2743.6,2743.5,0.00546279]
[1739548606482,3.9365932,2743.6,2743.5,0.00546279]
[1739548607783,0.00546279,2744.1,2743.5,0.00546279]
[1739548608083,3.21326599,2744.1,2744.0,3.2078]
[1739548608291,0.7285,2744.7,2744.4,0.72856]
[1739548608587,0.72854,2744.6,2744.4,3.2078]
[1739548608781,3.2078,2744.9,2744.4,3.2078]
[1739548608782,3.2078032,2744.5,2744.4,3.2078]
[1739548608986,0.72861,2744.3,2744.1,3.2078]
[1739548609186,1.82124,2744.7,2743.8,3.2078]
[1739548609389,3.2078032,2743.9,2743.5,3.21326279]
[1739548609588,3.2078032,2743.6,2743.5,3.94207279]
[1739548609988,0.72869,2744.0,2743.5,3.21326279]
[1739548610183,3.2078032,2743.8,2743.7,0.72874]
[1739548610484,3.2078032,2743.9,2743.5,3.21326279]
[1739548611487,3.2078032,2743.9,2743.8,3.2078]
[1739548611884,0.00546279,2744.5,2743.8,3.2078]
[1739548612083,3.2078032,2744.3,2744.2,3.93641]
[1739548612284,3.2078032,2744.3,2744.2,3.93643]
[1739548612680,3.2078032,2744.3,2744.2,3.2078]
[1739548612876,0.00546279,2744.5,2744.4,0.72857]
[1739548613083,3.21326599,2744.5,2744.2,3.2078]
[1739548613487,3.94182599,2744.5,2744.2,3.9364]
[1739548613786,3.94182599,2744.5,2744.2,3.2078]
[1739548613982,0.73402279,2744.5,2744.3,0.72859]
[1739548614289,3.2078032,2744.3,2743.8,3.2078]
[1739548614482,3.2078032,2744.2,2744.1,0.72864]
[1739548614682,3.2078032,2744.1,2743.9,0.7287]
[1739548614883,3.2078032,2744.1,2743.9,0.72871]
[1739548615285,0.00546279,2744.5,2743.8,3.2078]
[1739548615490,3.2078032,2744.2,2744.1,0.72864]
[1739548616386,0.00546279,2744.5,2744.1,0.72864]
[1739548616690,3.9364232,2744.3,2744.1,0.72863]
[1739548617082,3.2078032,2744.3,2744.2,0.72863]
[1739548617277,3.2078032,2744.3,2743.9,2.106]
[1739548617490,3.2078032,2744.2,2743.8,3.2078]
[1739548617684,0.7287,2744.0,2743.8,0.72873]
[1739548617890,3.9364732,2744.1,2743.9,3.93651]
[1739548618288,3.2078032,2744.1,2744.0,0.72868]
[1739548618483,0.72858,2744.4,2744.2,0.72862]
[1739548618689,3.2078032,2744.3,2744.2,0.72863]
[1739548618988,3.2078032,2744.3,2744.2,3.2078]
[1739548619194,3.2078032,2744.3,2744.2,3.93643]
[1739548620091,3.9364032,2744.3,2744.2,3.2078]
[1739548620795,3.2078032,2744.3,2744.2,3.2078]
[1739548621189,0.5753,2744.8,2744.2,3.2078]
[1739548621494,3.86381534,2745.8,2745.1,0.72837]
[1739548621495,0.72833,2745.4,2745.1,0.72837]
[1739548621797,3.2078032,2745.1,2745.0,3.93622]
[1739548622194,1.6736,2745.7,2745.0,3.46838277]
[1739548622489,3.2078032,2745.5,2745.4,0.72831]
[1739548622690,3.2078032,2745.5,2745.3,3.2078]
[1739548622691,1.82918,2746.3,2745.6,0.72826]
[1739548622898,3.2078032,2746.3,2746.2,3.2078]
[1739548623092,3.2078032,2746.3,2746.2,3.9359]
[1739548623290,3.9358732,2746.3,2746.2,3.2078]
[1739548623593,3.2078032,2746.3,2746.1,3.2078]
[1739548623893,3.2078,2747.1,2746.1,3.2078]
[1739548624099,3.2078032,2746.5,2746.4,3.2078]
[1739548624591,3.9358232,2746.5,2746.4,3.2078]
[1739548624793,3.2078032,2746.5,2746.4,3.2078]
[1739548624995,1.1011,2747.3,2746.4,11.2938]
[1739548625193,0.15909522,2748.5,2746.4,11.2938]
[1739548625194,0.536,2748.1,2747.1,3.2078]
[1739548625393,0.536,2748.1,2747.6,3.2078]
[1739548625394,3.2078032,2747.8,2747.6,3.2078]
[1739548625599,0.73059611,2748.0,2747.6,3.2078]
[1739548625803,3.2078032,2747.7,2747.3,3.2078]
[1739548625999,3.2078032,2747.4,2747.3,3.2078]
[1739548626296,0.00295611,2748.0,2747.3,3.2078]
[1739548626297,3.2078032,2747.7,2747.3,3.93559]
[1739548626494,3.2078032,2747.7,2747.4,0.72776]
[1739548626800,0.00295611,2748.0,2747.6,3.2078]
[1739548627195,3.2078032,2747.7,2747.6,3.2078]
[1739548627900,0.00295611,2748.0,2747.8,0.72767]
[1739548628198,0.00295611,2748.0,2747.9,3.2078]
[1739548628393,0.00295611,2748.0,2747.6,3.21326279]
[1739548628596,0.72766,2747.9,2747.6,3.21326279]
[1739548628794,3.2078032,2747.7,2747.6,3.21326279]
[1739548629898,0.00295611,2748.0,2747.6,3.21326279]
[1739548630101,3.2078032,2747.7,2747.6,3.21326279]
[1739548630302,3.2078032,2747.7,2747.6,3.94097279]
[1739548630599,3.2078032,2747.7,2747.6,0.00546279]
[1739548631103,3.2078032,2747.7,2747.2,3.2078]
[1739548631297,0.7279,2747.0,2746.8,3.2078]
[1739548631489,3.2078032,2746.9,2746.5,3.2078]
[1739548631690,4.3223,2747.2,2746.7,0.72795]
[1739548631897,3.2078032,2747.1,2746.5,3.2078]
[1739548632101,3.2078032,2747.1,2747.0,0.72788]
[1739548632398,0.00546279,2747.1,2747.0,0.72788]
[1739548632702,0.00546279,2747.1,2746.8,3.2078]
[1739548632703,3.21326599,2747.1,2746.8,3.93573]
[1739548632898,3.2078032,2746.9,2746.8,3.2078]
[1739548633196,3.2078032,2746.9,2746.8,3.93574]
[1739548633403,0.00546279,2747.1,2747.0,0.72788]
[1739548633702,5.04996,2747.9,2746.8,7.13863]
[1739548633897,5.04996,2747.9,2747.4,0.72777]
[1739548633898,4.3223,2747.9,2747.4,0.72777]
[1739548634098,0.72768,2747.8,2747.3,3.93559]
[1739548634291,3.2078032,2747.4,2747.3,3.93559]
[1739548634495,3.2078032,2747.5,2747.3,3.2078]
[1739548634695,3.2078032,2747.5,2747.4,0.72778]
[1739548635201,0.5775,2747.8,2747.3,3.2078]
[1739548635496,0.00295611,2748.0,2747.7,3.2078]
[1739548635698,0.00295611,2748.0,2747.9,0.72765]
[1739548635897,2.61766607,2747.8,2747.7,3.9355]
[1739548636298,0.00295611,2748.0,2747.9,0.72765]
[1739548636505,2.62062218,2748.0,2747.9,0.72765]
[1739548636802,2.62062218,2748.0,2747.7,3.2078]
[1739548637099,2.61766607,2747.8,2747.7,3.2078]
[1739548637300,2.61766607,2747.8,2747.2,5.3068]
[1739548637506,2.61766607,2747.3,2747.2,5.3068]
[1739548637696,2.61766607,2747.3,2747.2,3.93563]
[1739548638001,3.2078,2745.6,2743.6,3.2078]
[1739548638194,3.2078,2744.2,2744.1,2.3891795]
[1739548638396,3.2078,2744.2,2743.8,0.25950986]
[1739548638698,2.9028,2744.4,2744.3,4.67175918]
[1739548638902,2.9028,2744.4,2744.1,2.221]
[1739548639201,2.9028,2744.4,2744.3,0.364]
[1739548639395,2.9028,2744.4,2744.0,0.00546279]
[1739548639601,7.07161534,2744.1,2743.0,0.5817]
[1739548639801,3.2078,2743.2,2743.0,0.5817]
[1739548639996,3.2078,2743.6,2743.0,3.7895]
[1739548640202,3.2078,2743.6,2743.0,0.5817]
[1739548640503,0.72879,2743.6,2743.5,4.67175918]
[1739548640699,3.93659,2743.6,2743.5,4.67175918]
[1739548640896,0.72889,2743.3,2743.0,0.00546279]
[1739548641214,3.2078,2743.1,2742.5,4.24021381]
[1739548641406,3.2078,2742.6,2742.5,4.24021381]
[1739548642006,3.2078,2743.2,2743.1,1.46395918]
[1739548642302,3.2078,2744.3,2743.1,5.4428]
[1739548642500,7.07161534,2744.8,2744.0,3.2078]
[1739548642800,3.86381534,2744.4,2743.7,2.235]
[1739548643107,7.07161534,2744.0,2743.0,3.2078]
[1739548643397,1.1018,2744.7,2743.0,3.2078]
[1739548643398,7.80041534,2743.6,2743.0,3.2078]
[1739548643602,7.80041534,2743.6,2743.2,0.00546279]
[1739548643797,0.72877,2743.7,2743.2,0.00546279]
[1739548644103,3.2078,2743.3,2742.3,3.2078]
[1739548644298,3.2078,2742.7,2742.0,3.2078]
[1739548644701,3.85642103,2743.5,2742.6,3.2078]
[1739548645100,0.00546279,2743.3,2742.8,0.00546279]
[1739548645294,0.72894,2743.1,2742.8,0.00546279]
[1739548645493,0.72892,2743.1,2742.8,0.00546279]
[1739548645705,3.2078,2743.2,2742.8,0.00546279]
[1739548645905,0.00546279,2743.3,2742.8,0.00546279]
[1739548646099,0.00546279,2743.3,2742.9,3.2078]
[1739548646704,0.00546279,2743.3,2742.8,0.00546279]
[1739548646705,0.72897,2742.9,2742.8,0.00546279]
[1739548647005,3.85934199,2743.1,2742.2,3.2078]
[1739548647206,0.73433279,2743.3,2742.5,3.2078]
[1739548647401,0.00546279,2743.3,2742.5,3.2078]
[1739548647906,0.00546279,2743.3,2742.8,3.2078]
[1739548648098,0.00546279,2743.3,2742.9,0.72897]
[1739548648298,0.00546279,2743.3,2743.2,0.72889]
[1739548648498,0.00546279,2743.3,2743.2,3.03189]
[1739548648697,0.72858,2744.4,2743.2,2.303]
[1739548648897,0.72859,2744.4,2743.6,3.2078]
[1739548649105,3.2078,2744.5,2743.6,3.2078]
[1739548649301,0.72863,2744.2,2743.6,3.2078]
[1739548649499,0.72863,2744.2,2743.6,3.93659]
[1739548649701,3.85934199,2744.3,2743.6,3.93659]
[1739548649909,3.85934199,2743.9,2743.3,3.2078]
[1739548650206,3.2078,2743.6,2742.6,0.00546279]
[1739548650505,3.2078,2743.6,2742.8,3.2078]
[1739548650702,3.2078,2743.6,2743.2,0.72888]
[1739548650901,0.00546279,2744.2,2743.1,3.2078]
[1739548651201,0.00546279,2744.2,2744.1,0.72865]
[1739548651407,0.00546279,2744.2,2744.1,3.93645]
[1739548653602,0.00546279,2744.2,2744.0,0.72868]
[1739548653808,0.00546279,2744.2,2743.8,3.2078]
[1739548654009,0.73411279,2744.2,2743.8,3.93652]
[1739548654204,0.73411279,2744.2,2743.1,0.72892]
[1739548654205,0.72883,2743.5,2743.1,0.72892]
[1739548654407,2.36546,2744.1,2742.9,3.2078]
[1739548654408,2.8598,2744.1,2742.9,3.2078]
[1739548654707,2.8598,2744.1,2743.2,3.2078]
[1739548654906,0.72872,2743.9,2743.2,3.2078]
[1739548655203,0.5438,2744.1,2743.5,3.2078]
[1739548655604,0.5438,2744.1,2743.8,0.72872]
[1739548655796,0.5438,2744.1,2743.5,3.2078]
[1739548656000,0.00546279,2744.2,2744.1,0.72865]
[1739548656310,0.00546279,2744.2,2744.1,3.93645]
[1739548656506,0.00546279,2744.2,2743.7,3.2078]
[1739548657005,3.21326279,2744.2,2743.4,3.2078]
[1739548657205,0.72867,2744.1,2743.8,0.72873]
[1739548657397,0.00546279,2744.2,2743.7,3.2078]
[1739548657598,0.00546279,2744.2,2744.1,0.72865]
[1739548657800,2.79e-06,2744.2,2744.1,6.72865]
[1739548658001,2.79e-06,2744.2,2744.1,1.26835]
[1739548658206,2.79e-06,2744.2,2744.1,0.72865]
[1739548659302,2.79e-06,2744.2,2741.4,0.25639085]
[1739548659303,12.19734478,2744.2,2741.4,0.25639085]
[1739548659513,3.2078,2743.0,2742.1,1.82297]
[1739548659807,3.2078,2743.0,2741.8,3.2078]
[1739548659808,3.2078,2743.2,2742.4,3.2078]
[1739548660005,3.2078,2743.2,2742.5,3.0031]
[1739548660212,3.2078,2743.2,2743.0,0.72893]
[1739548660416,3.2078,2743.2,2742.5,3.0031]
[1739548660606,3.2078,2743.2,2743.0,0.72893]
[1739548661212,3.2078,2743.2,2742.6,2.45446279]
[1739548661708,3.2078,2742.8,2742.7,0.72903]
[1739548661903,3.2078,2742.8,2742.6,0.00546279]
[1739548662610,3.2078,2742.7,2742.6,0.00546279]
[1739548662907,3.93683,2742.7,2742.6,0.00546279]
[1739548663106,5.68201199,2742.6,2741.8,0.5376]
[1739548663313,3.2078,2742.1,2741.3,2.455]
[1739548663503,3.2078,2741.7,2741.6,0.72931]
[1739548663700,3.2078,2741.7,2741.3,2.455]
[1739548663907,3.2078,2741.9,2741.1,0.5376]
[1739548664102,3.2078,2741.4,2741.2,0.00546279]
[1739548664303,3.94257279,2741.7,2741.2,0.00546279]
[1739548664508,3.2078,2741.6,2741.2,0.00546279]
[1739548664810,3.2078,2741.3,2741.2,0.00546279]
[1739548665614,3.9372,2741.3,2741.2,0.00546279]
[1739548665810,9.2078,2741.3,2740.0,0.76651925]
[1739548666016,3.2078,2741.1,2740.0,0.5651]
[1739548666320,0.72959,2740.6,2740.0,0.5651]
[1739548666623,3.2078,2740.5,2739.8,0.72978]
[1739548666911,3.2078,2740.5,2739.9,0.00547285]
[1739548667103,3.2078,2740.0,2739.9,0.00547285]
[1739548667310,3.2078,2740.0,2738.6,0.03230226]
[1739548667611,3.85934199,2739.3,2738.6,0.03230226]
[1739548667807,1.8245,2739.9,2737.1,0.3656]
[1739548667808,3.2078,2738.3,2737.1,0.3656]
[1739548668008,3.85934199,2735.9,2735.8,0.38190456]
[1739548668515,3.2078,2736.2,2735.8,4.76510456]
[1739548668707,0.00547285,2736.1,2735.8,4.76510456]
[1739548668908,0.00547285,2736.1,2735.8,0.38190456]
[1739548669115,0.00547285,2736.1,2736.0,4.3832]
[1739548669507,3.21327285,2736.1,2735.8,0.38190456]
[1739548670115,3.21327285,2736.1,2736.0,4.3832]
[1739548670620,3.21327285,2736.1,2736.0,5.11401]
[1739548670913,2.03259184,2738.7,2736.0,5.11401]
[1739548670914,3.85934199,2739.5,2736.3,3.2078]
[1739548671107,3.85934199,2740.0,2739.1,3.2078]
[1739548671314,0.72975,2740.0,2739.7,3.2078]
[1739548671510,3.85934199,2740.6,2739.7,3.2078]
[1739548671710,9.85934199,2740.6,2740.0,3.2078]
[1739548671911,9.85934199,2740.6,2740.3,3.2078]
[1739548671912,0.72964,2740.4,2740.3,3.2078]
[1739548672216,6.00547285,2740.4,2740.3,3.2078]
[1739548672605,0.00547285,2740.4,2740.3,3.2078]
[1739548672810,0.72975,2740.0,2739.9,0.00547285]
[1739548673109,6.00547285,2740.4,2737.9,0.931]
[1739548673110,3.2078,2740.1,2739.1,3.2078]
[1739548673309,3.85934199,2739.9,2739.1,3.2078]
[1739548673509,0.72989,2739.5,2739.1,3.2078]
[1739548673709,12.4658,2740.1,2738.1,4.53853]
[1739548673710,3.2078,2740.0,2739.4,3.2078]
[1739548673911,3.2078,2742.4,2740.3,4.3832]
[1739548674222,3.2078,2742.2,2741.4,3.2078]
[1739548674422,3.2078,2742.5,2741.7,3.2078]
[1739548674616,9.2078,2742.5,2741.4,3.2078]
[1739548674817,3.2078,2742.5,2741.4,3.2078]
[1739548675112,0.72924,2741.9,2741.4,3.2078]
[1739548675315,3.2078,2741.5,2740.4,3.2078]
[1739548675520,0.72951,2740.9,2740.4,3.2078]
[1739548675716,5.83228361,2741.0,2740.4,3.2078]
[1739548676111,6.0,2741.0,2740.0,3.2078]
[1739548676312,9.04008361,2741.0,2739.7,3.2078]
[1739548676626,3.93747,2740.3,2740.2,0.00547285]
[1739548676821,0.72972,2740.1,2739.3,3.2078]
[1739548677012,5.83228361,2739.8,2739.2,3.2078]
[1739548677218,3.2078,2739.3,2738.5,3.2078]
[1739548677518,3.2078,2739.2,2738.5,3.2078]
[1739548677722,0.72999,2739.1,2738.1,3.2078]
[1739548677915,3.2078,2738.8,2738.1,3.2078]
[1739548678111,0.00547285,2738.9,2738.3,0.0036525]
[1739548678318,0.73007,2738.8,2738.3,0.0036525]
[1739548678614,0.00547285,2738.9,2738.3,0.0036525]
[1739548678826,0.73017,2738.4,2738.3,0.0036525]
[1739548679019,3.2078,2738.8,2738.3,0.0036525]
[1739548679217,9.2078,2738.8,2738.3,0.0036525]
[1739548679418,3.93797,2738.4,2738.3,0.0036525]
[1739548679815,0.00547285,2738.9,2738.3,4.38685535]
[1739548680029,0.00547285,2738.9,2738.7,7.59100285]
[1739548680625,0.00547285,2738.9,2738.8,4.38320285]
[1739548680822,0.00547285,2738.9,2738.7,3.2078]
[1739548681322,3.2078,2741.0,2738.7,15.07928361]
[1739548681534,3.2078,2741.4,2740.0,3.2078]
[1739548681827,3.2078,2741.4,2738.7,9.44488361]
[1739548681828,5.83228361,2741.6,2740.6,4.38320285]
[1739548682015,0.7293,2741.7,2740.8,3.2078]
[1739548682220,3.2078,2741.9,2741.1,3.2078]
[1739548682423,3.2078,2741.4,2740.5,3.2078]
[1739548682728,0.72945,2741.1,2741.0,0.00547285]
[1739548683223,12.56173361,2741.1,2741.0,2.85e-06]
[1739548685524,11.83228361,2741.1,2739.8,3.2078]
[1739548685731,3.2078,2740.2,2739.0,3.2078]
[1739548685919,3.2078,2740.2,2739.2,4.38320285]
[1739548686117,3.2078,2739.8,2739.1,4.38320285]
[1739548686318,9.04008361,2739.9,2739.1,4.38320285]
[1739548686518,0.7299,2739.5,2738.7,3.2078]
[1739548686722,3.9377,2739.5,2739.2,0.0036525]
[1739548686925,3.21327285,2739.8,2739.2,0.0036525]
[1739548687131,0.72983,2739.7,2739.2,0.0036525]
[1739548687324,0.00547285,2739.8,2739.5,4.38320285]
[1739548687826,0.00547285,2739.8,2739.4,3.2078]
[1739548687827,0.72985,2739.7,2739.4,3.2078]
[1739548688024,0.72987,2739.6,2739.4,3.2078]
[1739548688224,0.00547285,2739.8,2739.4,3.2078]
[1739548688427,0.00547285,2739.8,2739.2,0.0036525]
[1739548688730,0.72992,2739.4,2739.2,0.0036525]
[1739548689026,0.72993,2739.3,2739.2,0.0036525]
[1739548689432,3.2078,2739.7,2739.2,0.0036525]
[1739548689624,0.72993,2739.3,2739.2,0.0036525]
[1739548690024,0.00547285,2739.8,2739.2,0.0036525]
[1739548690228,0.72993,2739.3,2739.2,0.0036525]
[1739548690732,9.94993,2739.3,2738.4,3.2078]
[1739548691040,0.73022,2738.2,2738.1,3.2078]
[1739548691331,0.73021,2738.3,2738.1,3.2078]
[1739548691532,0.73022,2738.2,2738.1,3.2078]
[1739548691732,5.83228361,2738.9,2738.1,3.2078]
[1739548691928,0.00547285,2738.4,2738.2,4.38320285]
[1739548692127,0.73025,2738.1,2737.8,3.2078]
[1739548692327,0.00547285,2738.4,2737.8,7.59100285]
[1739548692536,3.21447285,2738.4,2737.8,3.2078]
[1739548692721,0.00547285,2738.4,2738.0,4.38320285]
[1739548692925,0.73023,2738.2,2738.1,4.38320285]
[1739548693128,0.73566285,2738.4,2738.1,4.38320285]
[1739548693333,0.7302,2738.3,2738.1,7.59100285]
[1739548693530,0.00547285,2738.4,2738.1,7.59100285]
[1739548693827,9.04555646,2738.4,2737.1,3.2078]
[1739548694028,3.2078,2738.0,2737.6,4.38320285]
[1739548694236,9.04555646,2738.4,2737.7,3.2078]
[1739548694430,0.00547285,2738.4,2737.7,7.59100285]
[1739548694630,0.73028,2738.0,2737.7,7.59100285]
[1739548694930,0.73033,2737.8,2737.7,3.2078]
[1739548696035,3.192,2738.1,2737.2,3.2078]
[1739548696230,3.2078,2738.2,2737.6,4.38320285]
[1739548696432,0.73031,2737.9,2737.8,3.2078]
[1739548697129,0.73031,2737.9,2736.7,3.2078]
[1739548697130,1.82584,2737.8,2736.7,3.2078]
[1739548697436,0.73057,2736.9,2736.8,4.38320285]
[1739548697625,3.185,2737.4,2737.0,4.38320285]
[1739548697832,3.185,2737.4,2737.0,3.2078]
[1739548697833,0.73052,2737.1,2737.0,3.2078]
[1739548698232,3.185,2737.4,2736.7,3.2078]
[1739548698431,0.7306,2736.8,2736.7,7.59100285]
[1739548698635,3.2078,2736.9,2736.2,3.2078]
[1739548698928,3.176,2737.2,2736.7,4.38320285]
[1739548699140,0.73609285,2736.8,2736.7,4.38320285]
[1739548699437,0.00547285,2736.8,2736.7,4.38320285]
[1739548699630,0.73607285,2736.8,2736.7,4.38320285]
[1739548699838,0.00547285,2736.8,2736.7,4.38320285]
[1739548700027,0.00547285,2736.8,2736.7,5.11383285]
[1739548700227,9.04008361,2737.9,2736.5,3.2078]
[1739548700427,3.2078,2737.0,2736.3,3.2078]
[1739548700630,0.73055,2737.0,2736.9,4.38320285]
[1739548700939,6.4168,2737.0,2736.2,3.2078]
[1739548701144,6.4168,2737.0,2736.2,7.59100285]
[1739548701343,0.73073,2736.4,2736.3,4.3886757]
[1739548701641,0.73073,2736.4,2736.3,0.00547285]
[1739548702137,0.73088,2735.8,2735.6,3.2078]
[1739548702344,1.82701,2736.1,2735.6,4.38320285]
[1739548702544,7.07419056,2736.2,2735.8,4.38320285]
[1739548702735,7.07419056,2736.2,2735.2,3.7632]
[1739548703035,7.07419056,2736.2,2735.4,4.38320285]
[1739548703036,0.73096,2735.5,2735.4,4.38320285]
[1739548703237,3.87819056,2735.8,2735.1,3.2078]
[1739548703442,0.73111,2734.9,2734.8,3.2078]
[1739548703648,0.7311,2735.0,2734.9,4.38320285]
[1739548704038,0.00548306,2735.2,2734.9,4.38320285]
[1739548704440,0.73107,2735.1,2734.9,4.38320285]
[1739548704642,0.73108,2735.0,2734.9,4.38320285]
[1739548704943,0.00548306,2735.2,2735.1,5.11425285]
[1739548705135,3.2078,2735.9,2735.1,7.59100285]
[1739548705339,0.73095,2735.5,2735.4,4.38320285]
[1739548705640,0.73105,2735.1,2735.0,3.2078]
[1739548706044,0.73105,2735.1,2734.9,0.5778]
[1739548706045,9.02210036,2735.7,2734.7,3.2078]
[1739548706238,9.02210036,2735.7,2734.8,4.38868591]
[1739548706239,1.82747,2735.4,2734.8,4.38868591]
[1739548706438,1.82747,2735.4,2734.8,0.00548306]
[1739548706439,0.7311,2734.9,2734.8,0.00548306]
[1739548706642,12.95200036,2734.9,2734.8,3.06e-06]
[1739548706847,18.95200036,2734.9,2734.8,3.06e-06]
[1739548707240,15.74420036,2734.9,2734.8,3.06e-06]
[1739548707646,18.95200036,2734.9,2734.8,3.06e-06]
[1739548707842,15.78900036,2734.9,2734.8,3.06e-06]
[1739548708043,12.94600036,2734.9,2734.8,3.06e-06]
[1739548708553,0.7311,2734.9,2734.8,3.06e-06]
[1739548710046,15.72020036,2734.9,2734.8,3.06e-06]
[1739548710450,9.72020036,2734.9,2734.8,3.06e-06]
[1739548710659,0.73147,2733.6,2733.3,3.7505]
[1739548711161,0.73148,2733.5,2733.4,4.38320285]
[1739548711356,5.03624,2734.0,2733.4,4.38320285]
[1739548711357,3.2078,2734.0,2733.4,4.38320285]
[1739548711659,5.85010036,2735.4,2733.9,4.38320285]
[1739548711953,0.7311,2735.0,2734.8,4.38320285]
[1739548712156,3.2078,2735.5,2735.1,4.38320285]
[1739548712359,0.73094,2735.5,2735.4,4.38320285]
[1739548712660,3.2078,2736.2,2735.4,7.59100285]
[1739548712961,8.98610036,2736.4,2735.4,3.2078]
[1739548713260,3.2078,2736.8,2734.6,1.82795]
[1739548713261,5.85010036,2736.9,2736.3,7.59100285]
[1739548713465,0.73064,2736.7,2736.6,4.38320285]
[1739548713648,0.00548306,2736.9,2736.7,4.38320285]
[1739548714662,0.7306,2736.8,2736.7,4.38320285]
[1739548714866,0.73606306,2736.9,2736.8,4.38320285]
[1739548715960,0.00548306,2736.9,2736.8,7.59100285]
[1739548716753,0.73605306,2736.9,2736.8,7.59100285]
[1739548716953,5.85010036,2737.9,2736.8,7.59100285]
[1739548717154,5.85010036,2737.9,2737.2,4.38320285]
[1739548717358,3.2078,2737.3,2736.7,4.38320285]
[1739548717559,0.7306,2736.8,2736.7,4.38320285]
[1739548718156,0.00548306,2737.0,2736.7,4.38320285]
[1739548718464,0.73065,2736.6,2736.5,0.00548306]
[1739548718654,0.73063,2736.7,2736.6,4.38320285]
[1739548718858,0.73062,2736.7,2736.6,7.59100285]
[1739548719057,5.85010036,2736.9,2736.6,7.59100285]
[1739548719260,0.73062,2736.7,2736.6,7.59100285]
[1739548719756,3.21328306,2737.0,2736.5,0.00548306]
[1739548719962,0.73065,2736.6,2736.5,0.00548306]
[1739548720461,13.01245,2736.6,2736.5,0.00548306]
[1739548720653,13.01245,2736.6,2736.5,3.06e-06]
[1739548720855,13.01245,2736.6,2735.7,0.57]
[1739548720856,1.82693,2736.2,2735.1,3.2078]
[1739548721061,0.73094,2735.5,2735.4,4.38320285]
[1739548721763,6.2748,2735.9,2735.1,3.2078]
[1739548722064,0.73102,2735.2,2735.1,4.38320285]
[1739548723861,0.73102,2735.2,2734.9,0.57718306]
[1739548723862,0.73108,2735.0,2734.9,0.00548306]
[1739548724059,3.88099286,2735.5,2735.1,4.38320285]
[1739548724253,3.88099286,2735.5,2735.2,3.2078]
[1739548724456,0.73108,2735.0,2734.9,3.21328306]
[1739548725264,0.73108,2735.0,2734.9,0.00548306]
[1739548726159,3.2078,2735.5,2734.9,0.00548306]
[1739548726160,5.03451,2736.5,2735.7,4.37771979]
[1739548726371,3.88099286,2736.6,2736.2,4.37771979]
[1739548726555,0.7307,2736.4,2736.3,4.37771979]
[1739548727356,0.73614306,2736.6,2736.3,4.37771979]
[1739548727566,0.73069,2736.5,2736.2,3.2078]
[1739548727867,0.73615306,2736.6,2736.5,4.37771979]
[1739548728264,0.00548306,2736.6,2736.5,7.58551979]
[1739548728460,0.73613306,2736.6,2736.5,7.58551979]
[1739548728661,0.73613306,2736.6,2736.5,4.37771979]
[1739548728863,0.00548306,2736.6,2736.2,3.792]
[1739548729057,0.73076,2736.2,2736.1,3.06e-06]
[1739548729464,6.73076,2736.2,2736.1,3.06e-06]
[1739548729766,0.73076,2736.2,2736.1,3.06e-06]
[1739548730067,6.73076,2736.2,2736.1,3.06e-06]
[1739548731159,0.73105,2735.1,2734.5,1.1661]
[1739548731357,3.88099286,2735.2,2734.7,3.2078]
[1739548731562,0.73107,2735.1,2734.7,3.2078]
[1739548731761,3.93877,2735.4,2735.3,4.37771979]
[1739548733461,3.036,2735.5,2735.3,4.37771979]
[1739548733462,0.73096,2735.5,2735.3,4.37771979]
[1739548733667,0.73096,2735.5,2735.1,0.00548306]
[1739548733668,0.73102,2735.2,2735.1,0.00548306]
[1739548734060,0.73102,2735.2,2735.1,4.38320285]
[1739548735064,0.73102,2735.2,2735.1,0.00548306]
[1739548735263,0.73102,2735.2,2735.1,4.38320285]
[1739548737965,3.88099286,2735.2,2734.8,0.00772211]
[1739548738170,0.73111,2734.9,2734.8,0.00772211]
[1739548738572,0.73111,2734.9,2734.8,2.11e-06]